bitfinex-derivatives/quotes_BTCF0:USTF0_20251204
["timestamp","ask_amount","ask_price","bid_price","bid_amount"]
[1764829503504,0.08685,93086.0,93085.0,0.05730116]
[1764829506598,0.05704,93086.0,93085.0,0.05730116]
[1764829506907,0.03,93086.0,93085.0,0.06804316]
[1764829508200,0.03,93086.0,93085.0,0.06904316]
[1764829508807,0.03,93086.0,93085.0,0.07004316]
[1764829509498,0.03,93086.0,93085.0,0.07104316]
[1764829514008,0.03,93086.0,93085.0,0.21104316]
[1764829517217,0.03,93086.0,93085.0,0.52104316]
[1764829517418,0.05541116,93104.0,93103.0,0.05862]
[1764829517617,0.08541116,93104.0,93103.0,0.05862]
[1764829519117,0.08641116,93104.0,93103.0,0.05862]
[1764829519503,0.03116116,93104.0,93103.0,0.0693599]
[1764829519806,0.05817116,93104.0,93103.0,0.0693599]
[1764829520005,0.06017116,93104.0,93103.0,0.0693599]
[1764829520616,0.05917116,93104.0,93103.0,0.0703599]
[1764829521012,0.05717116,93104.0,93103.0,0.0723599]
[1764829521409,0.03016116,93104.0,93103.0,0.0723599]
[1764829521914,0.03016116,93104.0,93103.0,0.0713599]
[1764829522112,0.03016116,93104.0,93103.0,0.0703599]
[1764829524713,0.05717116,93104.0,93103.0,0.0703599]
[1764829524915,0.08541116,93104.0,93103.0,0.0703599]
[1764829525413,0.03016116,93104.0,93103.0,0.0703599]
[1764829525615,0.05717116,93104.0,93103.0,0.0703599]
[1764829526721,0.03016116,93104.0,93103.0,0.0703599]
[1764829529017,0.03016116,93104.0,93103.0,0.2203599]
[1764829529618,0.03016116,93104.0,93103.0,0.5503599]
[1764829530009,0.0297,93123.0,93122.0,0.0693577]
[1764829530215,0.08794,93123.0,93122.0,0.0693577]
[1764829530414,0.0597,93123.0,93122.0,0.0693577]
[1764829531222,0.08794,93123.0,93122.0,0.0693577]
[1764829531724,0.09194,93123.0,93122.0,0.0693577]
[1764829533025,0.09094,93123.0,93122.0,0.0693577]
[1764829534126,0.1016776,93123.0,93122.0,0.05862]
[1764829534926,0.1016776,93123.0,93118.0,0.010738]
[1764829534927,0.05656,93119.0,93118.0,0.02772]
[1764829535129,0.05656,93117.0,93116.0,0.04507644]
[1764829535319,0.08656,93117.0,93116.0,0.04507644]
[1764829535519,0.08656,93117.0,93116.0,0.07279644]
[1764829535924,0.08656,93117.0,93116.0,0.10141644]
[1764829537328,0.08756,93117.0,93116.0,0.10141644]
[1764829542127,0.05994,93117.0,93116.0,0.10141644]
[1764829542328,0.031,93117.0,93116.0,0.10141644]
[1764829543536,0.08756,93117.0,93116.0,0.10141644]
[1764829544136,0.08756,93117.0,93116.0,0.07279644]
[1764829544627,0.08756,93117.0,93116.0,0.10141644]
[1764829551031,0.031,93117.0,93116.0,0.10141644]
[1764829551232,0.06003,93117.0,93116.0,0.17844992]
[1764829551535,0.08896,93117.0,93116.0,0.17844992]
[1764829551940,0.00016116,93132.0,93116.0,0.17844992]
[1764829551941,0.00016116,93132.0,93131.0,0.0452766]
[1764829552139,0.03016116,93132.0,93131.0,0.4452766]
[1764829552536,0.00016116,93132.0,93131.0,0.4452766]
[1764829552732,6e-08,93132.0,93131.0,0.4452766]
[1764829553841,6e-08,93132.0,93131.0,0.55265165]
[1764829554745,6e-08,93132.0,93131.0,0.64926775]
[1764829555239,6e-08,93132.0,93131.0,0.55265165]
[1764829556944,0.01638,93174.0,93131.0,0.55265165]
[1764829557135,0.24941103,93283.0,93131.0,0.55265165]
[1764829557136,0.03026834,93166.0,93165.0,0.12210461]
[1764829557342,0.03026834,93166.0,93165.0,1.03078126]
[1764829557541,0.08822834,93166.0,93165.0,0.12198126]
[1764829557739,0.08822834,93166.0,93165.0,0.1952727]
[1764829558039,0.08822834,93166.0,93165.0,0.0452727]
[1764829558247,0.05929834,93166.0,93165.0,0.1752727]
[1764829558546,0.06929834,93166.0,93165.0,0.27298962]
[1764829558743,0.07529834,93166.0,93165.0,0.27298962]
[1764829559246,0.07029834,93166.0,93165.0,0.27298962]
[1764829560545,0.09922834,93166.0,93165.0,0.27298962]
[1764829560850,0.00126834,93166.0,93165.0,0.69032549]
[1764829561439,4e-08,93166.0,93165.0,0.69032549]
[1764829561640,0.00016106,93175.0,93174.0,0.0452717]
[1764829561840,0.03016106,93175.0,93174.0,0.4652717]
[1764829562240,0.00016106,93175.0,93174.0,0.57260757]
[1764829562549,0.03016106,93175.0,93174.0,0.57260757]
[1764829562853,0.03316106,93175.0,93174.0,1.07128757]
[1764829563053,0.00316106,93175.0,93174.0,0.57260757]
[1764829563245,0.00316106,93175.0,93174.0,1.07128757]
[1764829563447,0.00416106,93175.0,93174.0,1.07124757]
[1764829564247,0.00416106,93175.0,93174.0,0.57260757]
[1764829564450,0.00416106,93175.0,93174.0,1.07120757]
[1764829564952,0.03416106,93175.0,93174.0,1.07120757]
[1764829565648,0.09310106,93175.0,93174.0,0.15260757]
[1764829565856,0.09310106,93175.0,93172.0,0.04506021]
[1764829565857,0.05696,93173.0,93172.0,0.04506021]
[1764829566050,0.08696,93173.0,93172.0,0.04506021]
[1764829566848,0.08796,93173.0,93172.0,0.04506021]
[1764829567751,0.08796,93173.0,93172.0,0.06233021]
[1764829567953,0.08996,93173.0,93172.0,0.06233021]
[1764829568251,0.05696,93166.0,93165.0,0.09771692]
[1764829568448,0.003,93173.0,93172.0,0.1180597]
[1764829568754,0.033,93173.0,93172.0,1.01579367]
[1764829569052,0.033,93173.0,93172.0,0.62376147]
[1764829569256,0.033,93173.0,93172.0,1.12352207]
[1764829569455,0.032,93173.0,93172.0,0.62416207]
[1764829569647,0.032,93173.0,93172.0,0.5780597]
[1764829569850,0.032,93173.0,93172.0,1.0773797]
[1764829570154,0.032,93173.0,93172.0,0.62416207]
[1764829570354,0.033,93173.0,93172.0,1.12348207]
[1764829570855,0.033,93173.0,93172.0,1.0773797]
[1764829571456,0.033,93173.0,93172.0,1.0773397]
[1764829571858,0.033,93173.0,93172.0,1.12256733]
[1764829572150,0.003,93173.0,93172.0,1.12256733]
[1764829572357,0.033,93173.0,93172.0,1.12213255]
[1764829572552,0.003,93173.0,93172.0,1.12213255]
[1764829572747,0.003,93173.0,93172.0,0.62285255]
[1764829572946,0.003,93173.0,93172.0,1.0772997]
[1764829573155,0.033,93173.0,93172.0,0.5780597]
[1764829573359,0.033,93173.0,93172.0,1.0772997]
[1764829574052,0.033,93173.0,93172.0,1.1219728]
[1764829574250,0.01691,93208.0,93199.0,0.0107288]
[1764829574452,0.07396,93200.0,93199.0,0.0107288]
[1764829574749,0.10387,93200.0,93199.0,1.5107288]
[1764829574949,0.10387,93200.0,93199.0,2.0101688]
[1764829575153,0.10387,93200.0,93199.0,2.1401688]
[1764829575357,0.07596,93200.0,93199.0,2.45574867]
[1764829575556,0.07696,93200.0,93199.0,2.4101688]
[1764829576052,0.07496,93200.0,93199.0,2.4101688]
[1764829576252,0.07596,93200.0,93199.0,2.4101688]
[1764829578154,0.04891,93200.0,93199.0,2.4101688]
[1764829578357,0.10587,93200.0,93199.0,2.4101688]
[1764829579461,0.10587,93200.0,93199.0,2.49597229]
[1764829579762,0.07596,93200.0,93199.0,2.49597229]
[1764829580363,0.10587,93200.0,93199.0,2.57597229]
[1764829580864,0.04891,93200.0,93199.0,2.57597229]
[1764829581058,0.04596,93200.0,93199.0,2.57597229]
[1764829581249,0.01891,93200.0,93199.0,2.57597229]
[1764829581861,0.04891,93200.0,93199.0,2.683269]
[1764829582068,0.10587,93200.0,93199.0,1.843829]
[1764829582268,0.10587,93200.0,93199.0,0.09653229]
[1764829582861,0.10587,93200.0,93199.0,1.59653229]
[1764829583061,0.10587,93200.0,93199.0,1.73653229]
[1764829584147,0.04891,93200.0,93199.0,1.99653229]
[1764829584356,0.01891,93200.0,93199.0,2.103829]
[1764829584549,0.01891,93200.0,93199.0,2.603349]
[1764829584959,0.01691,93208.0,93207.0,0.0107279]
[1764829585154,0.01691,93208.0,93207.0,0.4507279]
[1764829585155,0.04,93208.0,93207.0,0.4507279]
[1764829585359,0.05691,93208.0,93207.0,0.4507279]
[1764829585560,0.04,93208.0,93207.0,0.63434714]
[1764829586360,0.04,93208.0,93207.0,0.5580154]
[1764829586560,0.11387,93208.0,93207.0,0.5580154]
[1764829586762,0.11387,93208.0,93207.0,1.0574954]
[1764829586963,0.11387,93208.0,93207.0,0.1180154]
[1764829587162,0.11587,93208.0,93207.0,0.1180154]
[1764829587465,0.11587,93208.0,93207.0,0.0107279]
[1764829587867,0.11387,93208.0,93207.0,0.5112079]
[1764829588465,0.11387,93208.0,93207.0,0.5111679]
[1764829589364,0.11387,93208.0,93207.0,0.0117279]
[1764829589564,0.11387,93208.0,93207.0,0.5111679]
[1764829589864,0.11387,93208.0,93207.0,0.8311679]
[1764829590758,0.04,93208.0,93207.0,0.8311679]
[1764829590958,0.07387,93224.0,93207.0,0.9277275]
[1764829591158,0.07387,93224.0,93207.0,0.4390154]
[1764829591159,0.07387,93208.0,93207.0,0.4390154]
[1764829591360,0.07396,93208.0,93207.0,0.9386954]
[1764829591560,0.04691,93208.0,93207.0,0.9386954]
[1764829591761,0.03,93208.0,93207.0,0.9386954]
[1764829592771,0.03,93208.0,93207.0,0.9386554]
[1764829593361,0.03,93208.0,93207.0,0.4390154]
[1764829593662,0.10639,93208.0,93207.0,0.36494134]
[1764829594158,0.04884,93208.0,93207.0,0.36494134]
[1764829594359,0.04884,93208.0,93207.0,1.11462134]
[1764829596268,0.03,93208.0,93207.0,1.11462134]
[1764829597860,0.10639,93208.0,93207.0,0.0117279]
[1764829598163,0.10639,93208.0,93207.0,0.5113279]
[1764829599855,0.03,93208.0,93207.0,0.7686154]
[1764829600060,0.03,93208.0,93207.0,0.52556695]
[1764829600266,0.04884,93208.0,93207.0,0.4490154]
[1764829600662,0.04884,93208.0,93207.0,0.9486554]
[1764829600871,0.04884,93208.0,93207.0,0.6586554]
[1764829601071,0.04884,93208.0,93207.0,0.1190154]
[1764829601072,0.10639,93208.0,93207.0,0.1190154]
[1764829601371,0.10639,93208.0,93207.0,0.6186554]
[1764829601666,0.00026811,93246.0,93239.0,0.0107242]
[1764829601870,0.02824,93249.0,93246.0,0.0107234]
[1764829602071,0.01884,93258.0,93248.0,0.02874]
[1764829602261,0.10639,93258.0,93257.0,0.11499173]
[1764829602659,0.10639,93258.0,93257.0,0.62726537]
[1764829602862,0.10639,93258.0,93257.0,0.07094364]
[1764829603173,0.05755,93252.0,93250.0,0.07658394]
[1764829603380,0.05755,93251.0,93250.0,0.01189477]
[1764829603568,0.05755,93249.0,93248.0,0.07674481]
[1764829603767,0.08755,93249.0,93248.0,0.07674481]
[1764829604172,0.08755,93249.0,93248.0,0.17260106]
[1764829604472,0.08755,93249.0,93248.0,0.0119226]
[1764829606169,0.08755,93249.0,93248.0,0.09767242]
[1764829606567,0.08755,93249.0,93248.0,0.09867242]
[1764829606973,0.08755,93249.0,93248.0,0.0159226]
[1764829607372,0.08755,93249.0,93248.0,2.6e-06]
[1764829607585,0.08352,93233.0,93230.0,0.08730904]
[1764829607878,0.10872,93231.0,93230.0,0.0107251]
[1764829608077,0.13872,93231.0,93230.0,0.0107251]
[1764829609383,0.08352,93230.0,93229.0,0.08730934]
[1764829609580,0.11352,93230.0,93229.0,0.17495532]
[1764829610171,0.11352,93230.0,93229.0,0.16422992]
[1764829610373,0.11352,93230.0,93229.0,0.08764598]
[1764829610576,0.11352,93230.0,93229.0,0.001]
[1764829610773,0.11352,93230.0,93229.0,0.0127254]
[1764829611171,0.11352,93230.0,93229.0,0.0965554]
[1764829611377,0.11352,93230.0,93229.0,0.0551654]
[1764829611577,0.00442469,104050.0,93229.0,0.0551654]
[1764829611780,0.010724,93241.0,93240.0,0.00999999]
[1764829611978,0.040724,93241.0,93240.0,0.00999999]
[1764829612474,0.040724,93241.0,93232.0,0.0945549]
[1764829612475,0.0107245,93237.0,93232.0,0.0945549]
[1764829612680,0.0407245,93237.0,93232.0,0.0945549]
[1764829612881,0.03,93237.0,93235.0,0.0531646]
[1764829613078,0.03,93237.0,93235.0,0.0945546]
[1764829613275,0.03,93237.0,93235.0,0.0107246]
[1764829613670,0.0107246,93236.0,93235.0,0.0107246]
[1764829613875,0.0407246,93236.0,93235.0,0.0107246]
[1764829614779,0.0407246,93236.0,93232.0,0.08383]
[1764829615484,0.0407246,93236.0,93232.0,0.16041394]
[1764829615872,0.0407246,93236.0,93235.0,0.08383]
[1764829616073,0.03,93236.0,93235.0,0.08383]
[1764829616272,0.03,93236.0,93234.0,0.07658394]
[1764829616273,0.00010693,93244.0,93243.0,0.0945538]
[1764829616587,0.03010693,93244.0,93243.0,0.0945538]
[1764829617587,0.03210693,93244.0,93243.0,0.0945538]
[1764829618482,0.0107242,93239.0,93235.0,0.07657462]
[1764829618683,0.0107247,93235.0,93234.0,0.07657462]
[1764829618883,0.0407247,93235.0,93234.0,0.07657462]
[1764829619377,0.010725,93232.0,93231.0,0.0771351]
[1764829619688,0.040725,93232.0,93231.0,0.1185251]
[1764829620283,0.03,93232.0,93231.0,0.1185251]
[1764829620977,0.03,93232.0,93231.0,0.1195251]
[1764829621290,0.03,93232.0,93231.0,0.001]
[1764829621988,0.03,93232.0,93225.0,0.0117172]
[1764829622174,0.0107257,93226.0,93225.0,0.0117172]
[1764829622377,0.0107257,93226.0,93209.0,0.07664244]
[1764829622378,0.0107275,93210.0,93209.0,0.07664244]
[1764829622575,0.0407275,93210.0,93206.0,0.00026822]
[1764829623384,0.14613,93207.0,93206.0,0.00026822]
[1764829623688,0.17613,93207.0,93206.0,0.00026822]
[1764829624681,0.17613,93207.0,93206.0,0.01201214]
[1764829625384,0.07201,93207.0,93206.0,0.15279214]
[1764829625585,0.17613,93207.0,93206.0,0.15279214]
[1764829625893,0.18013,93207.0,93206.0,0.15279214]
[1764829626878,0.17713,93207.0,93206.0,0.15379214]
[1764829627279,0.17713,93207.0,93206.0,0.05389214]
[1764829627680,0.17713,93207.0,93206.0,0.01301214]
[1764829628180,0.17613,93207.0,93206.0,0.01301214]
[1764829628791,0.17613,93207.0,93206.0,0.15379214]
[1764829629189,0.17613,93207.0,93206.0,0.15279214]
[1764829630191,0.17613,93207.0,93206.0,0.01201214]
[1764829633493,0.17613,93207.0,93206.0,0.15279214]
[1764829635195,0.17613,93207.0,93206.0,0.15379214]
[1764829640792,0.1868579,93207.0,93206.0,0.01301214]
[1764829640988,0.1868579,93207.0,93206.0,0.05389214]
[1764829641195,0.1868579,93207.0,93206.0,0.01301214]
[1764829641388,0.1868579,93207.0,93206.0,0.15379214]
[1764829641898,0.17613,93207.0,93206.0,0.15279214]
[1764829642598,0.17713,93207.0,93206.0,0.15279214]
[1764829644500,0.17613,93207.0,93206.0,0.23043458]
[1764829645491,0.17613,93207.0,93206.0,0.15379214]
[1764829646198,0.03,93207.0,93206.0,0.15379214]
[1764829647396,0.17613,93207.0,93206.0,0.15379214]
[1764829648301,0.17613,93207.0,93206.0,0.2498716]
[1764829648802,0.17613,93207.0,93206.0,0.15379214]
[1764829650906,0.17613,93207.0,93206.0,0.01301214]
[1764829651306,0.17613,93207.0,93206.0,0.05389214]
[1764829651602,0.17613,93207.0,93206.0,0.15379214]
[1764829653401,0.17613,93207.0,93206.0,0.01301214]
[1764829653602,0.17613,93207.0,93206.0,0.05389214]
[1764829653809,0.03,93207.0,93206.0,0.14940214]
[1764829654010,0.1284,93207.0,93206.0,0.14840214]
[1764829654307,0.22199,93207.0,93206.0,0.14840214]
[1764829655310,0.22199,93207.0,93206.0,0.14940214]
[1764829674423,0.22199,93207.0,93206.0,0.14840214]
[1764829677719,0.22199,93207.0,93206.0,0.01201214]
[1764829677921,0.22199,93207.0,93206.0,0.18499214]
[1764829679527,0.22299,93207.0,93206.0,0.18499214]
[1764829680723,0.22299,93207.0,93206.0,0.01201214]
[1764829682830,0.22299,93207.0,93206.0,0.09958214]
[1764829683127,0.22299,93207.0,93206.0,0.18499214]
[1764829683325,0.22299,93207.0,93206.0,0.19572014]
[1764829685534,0.21,93207.0,93206.0,0.19572014]
[1764829701656,0.03,93207.0,93206.0,0.19572014]
[1764829701855,0.00101795,93207.0,93206.0,0.65572014]
[1764829702057,0.16886795,93207.0,93206.0,0.19572014]
[1764829702361,0.08726795,93207.0,93206.0,0.34572014]
[1764829702656,0.00101795,93207.0,93206.0,0.34572014]
[1764829704259,0.00101795,93207.0,93206.0,0.34672014]
[1764829705456,0.05016087,93217.0,93216.0,0.1824369]
[1764829705657,0.11641087,93217.0,93216.0,0.1824369]
[1764829705858,0.03016087,93217.0,93216.0,0.1824369]
[1764829706458,0.11641087,93217.0,93216.0,0.1824369]
[1764829706657,0.11741087,93217.0,93216.0,0.1824369]
[1764829707263,0.11941087,93217.0,93216.0,0.1824369]
[1764829707460,0.20101087,93217.0,93216.0,0.1824369]
[1764829709866,0.03316087,93217.0,93216.0,0.1824369]
[1764829710065,0.11941087,93217.0,93216.0,0.2324369]
[1764829710366,0.11941087,93217.0,93216.0,0.36679419]
[1764829710559,0.03316087,93217.0,93216.0,0.36679419]
[1764829712467,0.03316087,93217.0,93216.0,0.5224369]
[1764829714669,0.05,93227.0,93216.0,0.5224369]
[1764829714670,0.13625,93227.0,93226.0,0.1833157]
[1764829714868,0.10454815,93227.0,93226.0,0.1833157]
[1764829715660,0.10554815,93227.0,93226.0,0.1833157]
[1764829716770,0.035,93227.0,93226.0,0.1833157]
[1764829719572,0.035,93227.0,93226.0,0.26917154]
[1764829721070,0.035,93227.0,93226.0,0.25844584]
[1764829721266,0.035,93227.0,93220.0,0.31372458]
[1764829721465,0.035,93227.0,93220.0,0.31503328]
[1764829721870,0.0107257,93226.0,93225.0,0.20709]
[1764829722172,0.0407257,93226.0,93225.0,0.20709]
[1764829722767,0.0407257,93226.0,93225.0,0.12616]
[1764829723370,0.0407257,93226.0,93225.0,0.20709]
[1764829723567,0.033,93226.0,93225.0,0.20709]
[1764829724873,0.034,93226.0,93225.0,0.20709]
[1764829725477,0.16605,93226.0,93225.0,0.20709]
[1764829725870,0.29046,93226.0,93225.0,0.20709]
[1764829727777,0.29046,93226.0,93225.0,0.16153]
[1764829728175,0.2671858,93225.0,93224.0,0.0107258]
[1764829728475,0.2971858,93225.0,93224.0,0.0107258]
[1764829728871,0.2971858,93225.0,93224.0,0.1381758]
[1764829729275,0.2971858,93225.0,93224.0,0.1381759]
[1764829729474,0.2971858,93225.0,93224.0,0.2670859]
[1764829729773,0.29046,93225.0,93224.0,0.2670859]
[1764829729973,0.05,93235.0,93224.0,0.2670859]
[1764829729974,0.05,93235.0,93234.0,0.3486148]
[1764829730181,0.03,93235.0,93234.0,0.3486148]
[1764829731070,0.033,93235.0,93234.0,0.3486148]
[1764829732275,0.035,93235.0,93234.0,0.4986148]
[1764829732671,0.035,93235.0,93234.0,0.3486148]
[1764829738480,0.29146,93235.0,93234.0,0.33789]
[1764829738778,0.3021847,93235.0,93234.0,0.43372822]
[1764829738974,0.3021847,93235.0,93234.0,0.25636]
[1764829739573,0.267185,93232.0,93231.0,0.12745]
[1764829739769,0.297185,93232.0,93231.0,0.12745]
[1764829739973,0.297185,93232.0,93231.0,0.25636]
[1764829740376,0.297185,93232.0,93231.0,0.35221405]
[1764829740772,0.297185,93232.0,93229.0,0.0107253]
[1764829740773,0.25646,93230.0,93229.0,0.09585405]
[1764829740972,0.2671857,93226.0,93225.0,0.25652087]
[1764829741175,0.2971857,93226.0,93225.0,0.25652087]
[1764829742774,0.2981857,93226.0,93225.0,0.25652087]
[1764829743985,0.031,93226.0,93225.0,0.26724667]
[1764829744282,0.15722,93226.0,93225.0,0.26724667]
[1764829744477,0.28463,93226.0,93225.0,0.26724667]
[1764829747375,0.28463,93226.0,93225.0,0.25652087]
[1764829751687,0.28463,93226.0,93225.0,0.12761087]
[1764829752181,0.28463,93226.0,93225.0,0.00016087]
[1764829754092,0.28463,93226.0,93225.0,0.13265087]
[1764829754288,0.28463,93226.0,93225.0,0.26192087]
[1764829755782,0.28463,93226.0,93225.0,0.33355087]
[1764829757893,0.15722,93226.0,93225.0,0.33355087]
[1764829758580,0.031,93226.0,93225.0,0.33355087]
[1764829769700,0.28463,93226.0,93225.0,0.33355087]
[1764829770695,0.15722,93226.0,93225.0,0.33355087]
[1764829770903,0.031,93226.0,93225.0,0.37825675]
[1764829771996,0.15722,93226.0,93225.0,0.37825675]
[1764829772210,0.031,93226.0,93225.0,0.37825675]
[1764829776002,0.14456,93226.0,93225.0,0.37825675]
[1764829776205,0.031,93226.0,93225.0,0.37825675]
[1764829777401,0.14456,93226.0,93225.0,0.37825675]
[1764829778606,0.25324,93226.0,93225.0,0.37825675]
[1764829782119,0.25324,93226.0,93225.0,0.40263555]
[1764829782497,0.25324,93226.0,93225.0,0.27336555]
[1764829783300,0.25324,93226.0,93225.0,0.38175555]
[1764829784625,0.25324,93226.0,93225.0,0.44716555]
[1764829786803,0.14456,93226.0,93225.0,0.35115675]
[1764829787508,0.25111,93226.0,93225.0,0.44716555]
[1764829788308,0.25111,93226.0,93225.0,0.40245967]
[1764829789312,0.25111,93226.0,93225.0,0.30645087]
[1764829790722,0.13755,93226.0,93225.0,0.30645087]
[1764829790922,0.2441,93226.0,93225.0,0.30645087]
[1764829793921,0.13755,93226.0,93225.0,0.30645087]
[1764829794127,0.031,93226.0,93225.0,0.30645087]
[1764829794825,0.13755,93226.0,93225.0,0.30645087]
[1764829795019,0.2441,93226.0,93225.0,0.30645087]
[1764829795425,0.031,93226.0,93225.0,0.30645087]
[1764829797029,0.13755,93226.0,93225.0,0.30645087]
[1764829797222,0.031,93226.0,93225.0,0.30645087]
[1764829797828,0.13755,93226.0,93225.0,0.30645087]
[1764829798427,0.031,93226.0,93225.0,0.30645087]
[1764829799430,0.031,93226.0,93225.0,0.40245967]
[1764829799927,0.031,93226.0,93225.0,0.87245967]
[1764829800129,0.06083153,93236.0,93235.0,0.27933]
[1764829800326,0.03010693,93236.0,93235.0,0.27933]
[1764829802330,0.03310693,93236.0,93235.0,0.27933]
[1764829802531,0.03310693,93236.0,93235.0,0.37528923]
[1764829802732,0.05,93246.0,93245.0,0.27933]
[1764829802937,0.0107229,93251.0,93250.0,0.27933]
[1764829803133,0.14081,93251.0,93250.0,0.27933]
[1764829803435,0.03,93251.0,93250.0,0.27933]
[1764829805230,0.03,93251.0,93250.0,0.36316523]
[1764829805435,0.05,93261.0,93260.0,0.21562]
[1764829805635,0.222661,93268.0,93267.0,0.21562]
[1764829805843,0.252661,93268.0,93267.0,0.21562]
[1764829806531,0.24194,93268.0,93267.0,0.21562]
[1764829806730,0.03,93268.0,93267.0,0.21562]
[1764829806937,0.03,93268.0,93267.0,0.29223529]
[1764829807340,0.14101,93268.0,93267.0,0.21562]
[1764829807537,0.24194,93268.0,93267.0,0.21562]
[1764829808132,0.03,93268.0,93267.0,0.21562]
[1764829808338,0.24194,93268.0,93267.0,0.21562]
[1764829810135,0.03,93268.0,93267.0,0.21562]
[1764829811243,0.24194,93268.0,93267.0,0.21562]
[1764829812947,0.21194,93261.0,93260.0,0.21562]
[1764829813250,0.2526617,93261.0,93260.0,0.21562]
[1764829815746,0.1517317,93261.0,93260.0,0.21562]
[1764829815949,0.2526617,93261.0,93260.0,0.21562]
[1764829816753,0.24194,93261.0,93260.0,0.21562]
[1764829818649,0.21194,93252.0,93251.0,0.21562]
[1764829818839,0.05,93271.0,93251.0,0.21562]
[1764829818840,0.2226597,93279.0,93278.0,0.21562]
[1764829819041,0.2526597,93279.0,93278.0,0.21562]
[1764829820554,0.2526597,93279.0,93278.0,0.22963261]
[1764829821351,0.14401,93279.0,93278.0,0.22963261]
[1764829821553,0.2556596,93279.0,93278.0,0.22963261]
[1764829821748,0.1547296,93279.0,93278.0,0.22963261]
[1764829821954,0.2556596,93279.0,93278.0,0.22963261]
[1764829823749,0.24494,93279.0,93278.0,0.24035231]
[1764829824155,0.24494,93279.0,93278.0,0.22963261]
[1764829824842,0.033,93279.0,93278.0,0.24035231]
[1764829825655,0.14401,93279.0,93278.0,0.24035231]
[1764829826250,0.033,93279.0,93278.0,0.24035231]
[1764829826556,0.14401,93279.0,93278.0,0.22963261]
[1764829826750,0.24494,93279.0,93278.0,0.22963261]
[1764829830255,0.033,93279.0,93278.0,0.22963261]
[1764829830659,0.24494,93279.0,93278.0,0.22963261]
[1764829831948,0.24494,93279.0,93278.0,0.12573261]
[1764829832154,0.24494,93279.0,93278.0,0.21562]
[1764829833263,0.24494,93279.0,93278.0,0.22887689]
[1764829833958,0.033,93279.0,93278.0,0.22887689]
[1764829834162,0.033,93279.0,93278.0,0.23959659]
[1764829835657,0.033,93279.0,93278.0,1.73959659]
[1764829836265,0.03,93279.0,93278.0,1.73959659]
[1764829836564,0.033,93279.0,93278.0,1.73959659]
[1764829837465,0.23394,93279.0,93278.0,1.73959659]
[1764829838267,0.23394,93279.0,93278.0,0.23959659]
[1764829838467,0.23394,93279.0,93278.0,0.22887689]
[1764829838961,0.23394,93279.0,93278.0,0.30546863]
[1764829839167,0.033,93279.0,93278.0,0.35130216]
[1764829839371,0.033,93279.0,93278.0,0.27471042]
[1764829839867,0.033,93279.0,93278.0,0.22887689]
[1764829842671,0.033,93279.0,93278.0,0.23959659]
[1764829843959,0.14044,93279.0,93278.0,0.23959659]
[1764829844160,0.234,93279.0,93278.0,0.23959659]
[1764829844362,0.033,93279.0,93278.0,0.57419026]
[1764829844573,0.00026799,93286.0,93285.0,0.1986489]
[1764829844766,0.03026799,93286.0,93285.0,0.1986489]
[1764829845566,0.03326799,93286.0,93285.0,0.1986489]
[1764829851275,0.03326799,93286.0,93285.0,0.3386489]
[1764829851981,0.03326799,93286.0,93285.0,0.1986489]
[1764829852479,0.03026799,93286.0,93285.0,0.6979289]
[1764829852878,0.03026799,93286.0,93285.0,0.7541989]
[1764829853082,0.03026799,93286.0,93285.0,0.7581989]
[1764829853967,0.03026799,93286.0,93285.0,0.2599189]
[1764829854174,0.21809799,93286.0,93285.0,0.2492]
[1764829855782,0.21809799,93286.0,93285.0,0.2452]
[1764829855983,0.21809799,93286.0,93285.0,0.2482]
[1764829856381,0.03026799,93286.0,93285.0,0.2482]
[1764829857185,0.05,93296.0,93295.0,0.18793]
[1764829857384,0.0107173,93299.0,93298.0,0.1986474]
[1764829857588,0.0407173,93299.0,93298.0,0.1986474]
[1764829858386,0.2285473,93299.0,93298.0,0.1986474]
[1764829860087,0.2285473,93299.0,93298.0,0.18793]
[1764829861384,0.1349873,93299.0,93298.0,0.18793]
[1764829861577,0.2285473,93299.0,93298.0,0.18793]
[1764829863290,0.03,93299.0,93298.0,1.05188667]
[1764829863491,0.05,93309.0,93308.0,0.18793]
[1764829863684,0.23663,93319.0,93318.0,0.23738]
[1764829863883,0.22663,93319.0,93318.0,0.23738]
[1764829864181,0.04,93319.0,93318.0,0.23738]
[1764829864384,0.13412,93319.0,93318.0,0.23738]
[1764829864587,0.22648,93319.0,93318.0,0.23738]
[1764829864984,0.13412,93319.0,93318.0,0.23738]
[1764829865289,0.04,93319.0,93318.0,0.23738]
[1764829865492,0.043,93319.0,93318.0,0.73558]
[1764829866789,0.04,93319.0,93318.0,0.23738]
[1764829866985,0.041,93319.0,93318.0,0.73558]
[1764829867185,0.041,93319.0,93318.0,0.23738]
[1764829867389,0.041,93319.0,93318.0,0.73558]
[1764829867693,0.04,93319.0,93318.0,0.73558]
[1764829868195,0.04,93319.0,93318.0,0.73554]
[1764829868689,0.04,93319.0,93318.0,0.23738]
[1764829868897,0.04,93319.0,93318.0,0.73554]
[1764829869189,0.04,93319.0,93318.0,0.31366421]
[1764829870287,0.04,93319.0,93318.0,0.23738]
[1764829871201,0.22648,93319.0,93318.0,0.23738]
[1764829871784,0.22648,93319.0,93318.0,0.18062]
[1764829871984,0.22648,93319.0,93309.0,0.09821078]
[1764829871985,0.09412,93310.0,93309.0,0.09821078]
[1764829872193,0.2731,93310.0,93309.0,0.00016078]
[1764829872396,0.2731,93310.0,93294.0,0.17379303]
[1764829872397,0.18648,93295.0,93294.0,0.17379303]
[1764829872696,0.2271978,93295.0,93294.0,0.09805]
[1764829873396,0.2271978,93295.0,93294.0,0.18463]
[1764829873995,0.2271978,93295.0,93294.0,0.18563]
[1764829874696,0.2271978,93295.0,93294.0,0.18963]
[1764829875292,0.2271978,93295.0,93294.0,0.18763]
[1764829876599,0.2271978,93295.0,93294.0,0.18663]
[1764829876796,0.2271978,93295.0,93294.0,0.18763]
[1764829877192,0.2271978,93295.0,93294.0,0.003]
[1764829877395,0.2271978,93295.0,93285.0,0.00016078]
[1764829877396,0.1971988,93286.0,93285.0,0.00016078]
[1764829877588,0.18648,93279.0,93278.0,0.01325689]
[1764829877788,0.1972014,93263.0,93262.0,0.18463]